bitfinex/quotes_ETHUSD_20251213
["timestamp","ask_amount","ask_price","bid_price","bid_amount"]
[1765585192693,0.51,3092.5,3092.2,0.2551]
[1765585193014,0.9991,3092.5,3092.2,0.2551]
[1765585194114,4.23277595,3092.5,3092.2,0.2551]
[1765585194307,0.9991,3092.5,3092.2,0.2551]
[1765585196288,4.23274141,3092.5,3092.2,0.2551]
[1765585196809,4.23274141,3092.5,3091.8,0.97113935]
[1765585196810,0.4677,3092.3,3091.8,0.97113935]
[1765585197009,3.72274141,3092.5,3091.9,0.2551]
[1765585197215,4.23274141,3092.5,3092.2,0.2551]
[1765585197696,0.4677,3092.3,3092.0,0.405504]
[1765585197896,0.4677,3092.3,3092.0,0.98597929]
[1765585198094,0.4677,3092.1,3091.9,0.405504]
[1765585198434,3.72287406,3092.4,3091.9,0.405504]
[1765585198594,3.72287406,3092.4,3092.0,0.2551]
[1765585198795,0.4891,3092.3,3092.0,0.2551]
[1765585199430,0.4891,3092.3,3092.0,0.83557529]
[1765585201423,0.4891,3092.3,3091.8,1.22624878]
[1765585201424,0.4677,3092.1,3091.8,1.55162407]
[1765585201736,0.4891,3092.5,3091.9,0.660604]
[1765585202037,0.51,3092.4,3092.0,0.2551]
[1765585202513,0.4891,3092.3,3092.0,0.2551]
[1765585204936,3.7229391,3092.3,3092.0,0.2551]
[1765585211241,0.4891,3092.2,3091.9,0.405504]
[1765585212426,0.4677,3092.0,3091.9,0.405504]
[1765585213342,0.4677,3092.0,3091.8,0.58047529]
[1765585213644,0.4677,3092.0,3091.8,0.405504]
[1765585213837,3.72306145,3092.2,3091.8,0.405504]
[1765585214141,0.4891,3092.2,3091.8,0.405504]
[1765585214345,0.4891,3092.1,3091.8,0.405504]
[1765585215618,3.23373431,3092.4,3091.8,0.405504]
[1765585215945,3.72283431,3092.4,3091.8,0.405504]
[1765585216148,0.4891,3092.3,3091.8,0.405504]
[1765585219119,3.72296946,3092.3,3091.8,0.405504]
[1765585221658,3.72296946,3092.3,3091.9,0.58047529]
[1765585221940,0.4702,3092.2,3091.9,0.58047529]
[1765585223144,0.4702,3092.2,3091.8,0.98597929]
[1765585223529,0.4702,3092.2,3091.8,0.405504]
[1765585223943,0.4702,3092.2,3091.9,0.58047529]
[1765585224850,0.4702,3092.2,3091.8,0.98597929]
[1765585228654,3.70416429,3092.2,3091.8,0.98597929]
[1765585229660,0.4702,3092.2,3091.8,0.98597929]
[1765585230355,3.23375436,3092.4,3091.8,0.405504]
[1765585230557,0.4702,3092.1,3091.8,0.405504]
[1765585231452,0.4702,3092.1,3091.8,0.98597929]
[1765585231653,0.4918,3091.9,3091.8,0.405504]
[1765585232067,0.4702,3092.1,3091.8,0.660604]
[1765585234363,3.70428258,3092.1,3091.8,0.660604]
[1765585235032,0.4702,3092.0,3091.8,0.660604]
[1765585235228,0.4702,3092.0,3091.9,1.37668737]
[1765585235639,0.962,3092.0,3091.9,1.37668737]
[1765585240867,0.4918,3092.0,3091.9,1.37668737]
[1765585241439,0.4702,3092.2,3091.9,1.37668737]
[1765585241938,0.4702,3092.2,3091.9,0.405504]
[1765585242138,0.4702,3092.2,3092.0,0.97118337]
[1765585244050,0.4918,3092.1,3092.0,0.97118337]
[1765585245763,0.4702,3092.2,3092.0,0.97118337]
[1765585246867,3.7042408,3092.2,3092.0,0.97118337]
[1765585247769,0.962,3092.1,3092.0,0.97118337]
[1765585247989,0.962,3092.1,3089.6,3.56990983]
[1765585247990,11.17414415,3092.1,3090.7,0.3845]
[1765585248212,0.4918,3091.4,3091.3,0.97118337]
[1765585248467,0.4918,3091.4,3090.8,1.09047529]
[1765585248651,0.4702,3091.3,3090.9,0.97146955]
[1765585248854,0.4702,3091.3,3090.9,1.55194484]
[1765585249249,0.4702,3091.3,3090.9,0.58047529]
[1765585249439,0.4702,3091.3,3090.8,0.51]
[1765585249645,0.4702,3091.3,3090.9,0.405504]
[1765585249855,0.4702,3091.3,3090.9,0.98597929]
[1765585250148,0.4702,3091.3,3091.0,0.97146955]
[1765585250875,0.4641,3091.1,3091.0,0.97146955]
[1765585252887,0.9389,3091.1,3091.0,0.97146955]
[1765585253495,0.4641,3091.1,3091.0,0.97146955]
[1765585255890,0.9389,3091.1,3091.0,0.97146955]
[1765585258510,0.4641,3091.1,3091.0,0.97146955]
[1765585258896,4.1739943,3091.1,3090.7,0.405504]
[1765585259068,0.4641,3091.0,3090.7,0.405504]
[1765585259404,0.9389,3091.0,3090.9,0.97146955]
[1765585259996,4.17409896,3091.0,3090.9,0.97146955]
[1765585260216,3.70999896,3091.0,3090.6,0.407504]
[1765585260373,0.4641,3090.7,3090.6,0.97346955]
[1765585260713,0.4641,3090.7,3090.6,0.002]
[1765585260869,0.9389,3090.7,3090.6,0.002]
[1765585261075,0.6682,3090.9,3090.6,0.2571]
[1765585261293,3.23519896,3091.0,3090.6,0.2571]
[1765585261490,0.4748,3091.0,3090.6,0.2571]
[1765585261693,0.51,3091.3,3090.9,0.2551]
[1765585261901,3.42730044,3092.3,3090.7,0.405504]
[1765585261902,6.9428961,3092.1,3091.1,0.405504]
[1765585262095,6.4685145,3091.9,3091.2,0.2551]
[1765585262577,0.4748,3091.8,3091.3,0.811008]
[1765585262807,0.9848,3091.8,3091.3,0.811008]
[1765585263009,0.9848,3091.8,3091.3,1.066108]
[1765585263502,0.9848,3091.8,3091.3,0.811008]
[1765585263701,0.51,3091.9,3091.7,0.2551]
[1765585263876,3.23394347,3092.2,3091.8,0.2551]
[1765585264077,4.08667782,3092.2,3091.8,0.2551]
[1765585264282,4.08667782,3092.2,3092.1,0.2551]
[1765585264283,0.34273435,3092.2,3092.1,0.2551]
[1765585264513,3.74388114,3092.3,3092.1,0.2551]
[1765585265001,3.74386022,3092.3,3092.1,0.2551]
[1765585268711,3.23386022,3092.3,3092.1,0.2551]
[1765585270214,0.9848,3092.4,3092.1,0.2551]
[1765585270215,4.21857472,3092.4,3092.1,0.2551]
[1765585271315,3.74377472,3092.4,3092.1,0.2551]
[1765585271490,0.4748,3092.3,3091.9,1.22629909]
[1765585273519,3.70867597,3092.3,3091.9,1.22629909]
[1765585273892,0.1883,3092.7,3091.9,1.22629909]
[1765585273893,3.42176458,3092.7,3092.2,0.2551]
[1765585274085,3.42176458,3092.7,3092.3,0.2551]
[1765585274086,0.51,3092.6,3092.3,0.2551]
[1765585274401,0.9848,3092.6,3092.3,0.2551]
[1765585276523,3.23362974,3092.5,3092.3,0.2551]
[1765585277324,3.70842974,3092.5,3092.0,1.22625507]
[1765585278824,3.23362974,3092.5,3092.0,1.22625507]
[1765585279029,3.23362974,3092.5,3092.0,0.97115507]
[1765585279030,0.4748,3092.4,3092.0,0.97115507]
[1765585279327,0.4748,3092.4,3092.0,1.22625507]
[1765585279929,4.19766943,3092.6,3092.1,0.58047529]
[1765585280128,0.51,3092.5,3092.1,0.58047529]
[1765585280327,0.9641,3092.5,3092.1,0.58047529]
[1765585280501,0.9641,3092.5,3092.1,0.83557529]
[1765585282336,3.23356943,3092.6,3092.1,0.83557529]
[1765585282540,0.51,3092.5,3092.1,0.83557529]
[1765585282740,3.68906943,3092.6,3092.1,0.83557529]
[1765585282945,0.51,3092.5,3092.2,0.2551]
[1765585285338,0.51,3092.5,3092.1,0.97113935]
[1765585285538,0.51,3092.5,3092.1,1.22623935]
[1765585285764,0.51,3092.5,3092.1,4.46027066]
[1765585286537,0.9655,3092.6,3092.1,4.46027066]
[1765585287236,0.4555,3092.6,3092.1,4.46027066]
[1765585287409,0.9655,3092.6,3092.1,4.46027066]
[1765585288145,3.42173024,3092.7,3092.1,4.20517066]
[1765585288442,0.51,3092.6,3092.2,0.2551]
[1765585289345,0.51,3092.6,3092.1,0.58047529]
[1765585289544,0.9655,3092.6,3092.1,0.83557529]
[1765585291041,0.4555,3092.9,3092.5,0.2551]
[1765585291344,0.51,3092.8,3092.6,0.2551]
[1765585291521,0.51,3092.8,3092.3,0.2551]
[1765585291721,0.9655,3092.8,3092.3,0.2551]
[1765585291954,4.19888291,3092.8,3092.3,0.2551]
[1765585292849,4.19888291,3092.8,3092.3,3.48892717]
[1765585293055,4.19888291,3092.8,3092.3,0.2551]
[1765585293555,0.4674,3092.4,3092.2,0.405504]
[1765585297158,0.4555,3092.5,3092.2,0.405504]
[1765585298154,3.23360475,3092.6,3092.2,0.405504]
[1765585298327,3.68910475,3092.6,3092.2,0.405504]
[1765585299266,0.4555,3092.5,3092.2,0.405504]
[1765585299850,0.4555,3092.5,3092.1,0.97102619]
[1765585299851,0.4674,3092.3,3092.1,0.97102619]
[1765585300052,0.4674,3092.3,3092.1,0.405504]
[1765585300556,0.4555,3092.5,3092.1,0.405504]
[1765585301357,6.46684126,3092.7,3092.1,0.405504]
[1765585301571,7.63974539,3092.7,3092.1,0.405504]
[1765585301858,0.4555,3092.6,3092.1,0.405504]
[1765585303360,3.68912195,3092.6,3092.1,0.405504]
[1765585303658,4.19912195,3092.6,3092.1,0.405504]
[1765585303845,0.4555,3092.5,3092.1,0.405504]
[1765585304664,3.68915513,3092.5,3092.1,0.405504]
[1765585306465,0.4555,3092.5,3092.1,0.405504]
[1765585308061,3.68916746,3092.5,3092.1,0.405504]
[1765585309766,3.68916746,3092.5,3092.1,0.660604]
[1765585310272,3.68916746,3092.5,3092.1,0.405504]
[1765585311850,0.4851,3092.4,3092.1,0.405504]
[1765585312251,3.23366746,3092.5,3092.1,0.660604]
[1765585312456,3.23366746,3092.5,3092.3,0.2551]
[1765585312971,3.71876746,3092.5,3092.3,0.2551]
[1765585313374,3.71876746,3092.5,3092.1,0.660604]
[1765585315475,0.4851,3092.5,3092.1,0.405504]
[1765585315672,0.4851,3092.5,3092.1,0.660604]
[1765585316172,3.71878235,3092.5,3092.1,0.660604]
[1765585316476,3.71878235,3092.5,3091.7,0.405504]
[1765585316477,0.4732,3092.2,3091.7,0.405504]
[1765585316646,0.4732,3092.1,3091.7,1.37669051]
[1765585316847,0.4732,3092.1,3091.7,4.61115561]
[1765585317044,0.9583,3092.1,3091.7,4.61115561]
[1765585317448,0.9583,3092.1,3091.7,4.61109267]
[1765585318868,0.9583,3092.1,3091.7,4.86619267]
[1765585319775,0.9583,3092.1,3091.7,2.2122658]
[1765585319982,0.9583,3092.1,3091.7,1.9571658]
[1765585320480,4.1923511,3092.1,3091.7,1.37669051]
[1765585320867,0.4851,3092.0,3091.7,1.37669051]
[1765585321070,0.4851,3092.0,3091.7,0.405504]
[1765585321875,3.23383889,3092.3,3091.7,0.98597929]
[1765585322177,3.23383889,3092.3,3091.8,0.58047529]
[1765585322178,0.4851,3092.2,3091.8,0.58047529]
[1765585322352,0.51,3092.3,3092.2,0.2551]
[1765585322777,3.23343025,3092.7,3092.2,0.83557529]
[1765585322965,3.74353409,3092.6,3092.2,1.09067529]
[1765585323881,4.22863409,3092.6,3092.2,0.83557529]
[1765585324680,6.97706818,3092.6,3092.2,0.83557529]
[1765585324867,6.97706818,3092.6,3092.1,0.405504]
[1765585324868,3.70704419,3092.3,3092.1,0.405504]
[1765585325178,0.4732,3092.2,3092.1,0.405504]
[1765585325479,0.4732,3092.2,3092.0,0.405504]
[1765585326973,3.71894419,3092.3,3092.0,0.405504]
[1765585327279,3.71894419,3092.3,3091.9,0.9710922]
[1765585327575,3.71894419,3092.3,3091.7,3.81491053]
[1765585327576,0.4732,3092.0,3091.8,1.3765962]
[1765585327782,0.4851,3092.2,3091.8,1.3765962]
[1765585327976,0.4851,3092.2,3091.8,4.61093838]
[1765585328177,3.23384419,3092.3,3091.8,4.86603838]
[1765585328381,3.71894419,3092.3,3091.8,4.86603838]
[1765585329052,0.4851,3092.3,3091.8,4.86603838]
[1765585330079,3.23386884,3092.3,3091.8,1.3765962]
[1765585330280,3.23386884,3092.3,3091.8,0.405504]
[1765585330808,3.71896884,3092.3,3091.8,1.24107929]
[1765585330983,3.71896884,3092.3,3091.8,0.660604]
[1765585332381,3.71896884,3092.3,3091.9,0.2551]
[1765585333087,0.4851,3092.3,3091.9,0.2551]
[1765585333293,0.9951,3092.5,3091.9,0.2551]
[1765585333488,0.4851,3092.5,3091.9,0.2551]
[1765585333784,0.51,3092.5,3092.4,0.2551]
[1765585335087,3.23342125,3092.7,3092.4,0.2551]
[1765585335293,3.74342125,3092.7,3092.4,0.2551]
[1765585335873,6.32,3092.8,3092.6,0.2551]
[1765585336077,0.51,3093.0,3092.7,0.2551]
[1765585336395,1.47945857,3093.0,3092.7,0.2551]
[1765585336570,0.4732,3092.8,3092.5,0.405504]
[1765585337102,3.70651922,3092.8,3092.5,0.405504]
[1765585338102,0.4732,3092.8,3092.5,0.405504]
[1765585338602,3.70654581,3092.8,3092.5,0.405504]
[1765585339798,0.4732,3092.8,3092.5,0.405504]
[1765585340105,3.70653161,3092.8,3092.5,0.405504]
[1765585340698,0.4732,3092.8,3092.5,0.405504]
[1765585341604,3.70652799,3092.8,3092.5,0.405504]
[1765585342208,0.4732,3092.8,3092.5,0.405504]
[1765585343207,3.71832826,3092.9,3092.5,0.660604]
[1765585344104,0.1973,3093.1,3092.5,3.63909998]
[1765585344308,3.74300709,3093.1,3092.8,0.2551]
[1765585344996,0.001,3093.2,3093.0,0.660604]
[1765585345195,0.001,3093.2,3093.1,0.660604]
[1765585345378,0.001,3093.2,3093.1,0.915704]
[1765585348501,0.001,3093.2,3093.1,1.88648196]
[1765585349584,0.001,3093.2,3093.1,1.63138196]
[1765585349784,0.001,3093.2,3093.1,1.88648196]
[1765585350402,0.001,3093.2,3093.1,5.69995973]
[1765585352108,0.001,3093.2,3093.1,2.46695725]
[1765585353215,0.001,3093.2,3093.1,2.21185725]
[1765585368129,0.001,3093.2,3093.1,5.44485973]
[1765585368799,0.001,3093.2,3093.1,5.69995973]
[1765585370323,0.001,3093.2,3093.1,2.46695725]
[1765585375146,0.001,3093.2,3093.1,5.69995973]
[1765585377826,0.001,3093.2,3093.1,6.20995973]
[1765585381519,0.001,3093.2,3093.1,5.95485973]
[1765585382035,0.001,3093.2,3092.2,0.1258]
[1765585382036,4.19749796,3093.2,3092.2,0.1258]
[1765585382235,0.4688,3093.0,3092.2,3.23386487]
[1765585382436,0.4688,3093.0,3092.7,0.12946638]
[1765585382752,0.6807,3092.9,3092.7,0.12946638]
[1765585382956,0.4688,3092.8,3092.7,0.12946638]
[1765585383156,0.9636,3092.8,3092.7,0.12946638]
[1765585389257,4.19691608,3092.8,3092.7,0.12946638]
[1765585389458,0.9636,3092.8,3092.7,0.12946638]
[1765585390155,4.19691608,3092.8,3092.7,0.12946638]
[1765585391158,0.9636,3092.8,3092.7,0.12946638]
[1765585403075,0.4688,3092.8,3092.7,0.12946638]
[1765585403979,0.9502,3092.8,3092.7,0.12946638]
[1765585409374,0.9502,3092.8,3092.6,0.58047529]
[1765585409575,0.4535,3092.7,3092.6,0.58047529]
[1765585411284,0.4814,3092.8,3092.6,0.58047529]
[1765585411880,0.4535,3092.7,3092.4,3.81416391]
[1765585412662,0.4814,3092.6,3092.4,0.405504]
[1765585413091,0.9349,3092.7,3092.4,3.63920964]
[1765585413479,0.9349,3092.7,3092.4,0.405504]
[1765585413788,0.9349,3092.7,3092.3,0.405504]
[1765585413970,0.9349,3092.7,3092.4,0.58047529]
[1765585414590,0.4814,3092.6,3092.3,0.405504]
[1765585414791,0.4814,3092.6,3092.3,3.63933587]
[1765585416401,0.4814,3092.8,3092.3,3.89443587]
[1765585419793,3.71471665,3092.8,3092.3,0.405504]
[1765585419971,3.71471665,3092.8,3092.3,0.98597929]
[1765585420168,0.4814,3092.7,3092.4,0.58047529]
[1765585421395,0.4814,3092.6,3092.3,0.405504]
[1765585421599,0.4814,3092.6,3092.4,0.58047529]
[1765585421966,3.71475967,3092.8,3092.4,0.58047529]
[1765585422180,0.4814,3092.7,3092.4,0.58047529]
[1765585423901,0.4814,3092.7,3092.5,0.58047529]
[1765585424083,1.1773,3092.9,3092.5,0.58047529]
[1765585425008,1.1773,3092.9,3092.5,0.83557529]
[1765585425211,1.1773,3092.9,3092.5,4.06917268]
[1765585426011,1.1773,3092.9,3092.5,3.81407268]
[1765585426164,1.1773,3092.9,3092.5,0.58047529]
[1765585427504,1.1773,3092.9,3092.5,3.81410383]
[1765585428216,1.1773,3092.9,3092.4,3.81415963]
[1765585428718,1.1773,3092.9,3092.4,4.06925963]
[1765585430012,3.7431548,3093.0,3092.4,3.81415963]
[1765585430197,3.7431548,3093.0,3092.5,0.2551]
[1765585430401,4.2245548,3093.0,3092.5,0.2551]
[1765585430580,0.4721,3092.9,3092.5,0.2551]
[1765585431276,0.4721,3092.9,3092.4,3.81415963]
[1765585431477,0.4721,3092.9,3092.4,4.06925963]
[1765585431674,0.001,3093.2,3092.8,0.2551]
[1765585431911,0.001,3093.2,3092.8,0.5102]
[1765585432201,0.4731,3093.2,3092.8,0.2551]
[1765585432810,0.4731,3093.2,3092.8,3.48841032]
[1765585433016,0.4731,3093.2,3092.8,0.2551]
[1765585435282,0.4731,3093.2,3092.8,3.48840997]
[1765585435783,0.4731,3093.2,3092.8,0.2551]
[1765585437608,0.001,3093.2,3092.9,0.98597929]
[1765585438497,0.001,3093.2,3092.9,1.24107929]
[1765585439818,0.001,3093.2,3092.9,0.98597929]
[1765585440021,0.4731,3093.2,3092.8,0.405504]
[1765585440516,0.4813,3092.9,3092.8,0.405504]
[1765585442316,0.4813,3092.9,3092.7,0.405504]
[1765585442317,1.1417,3092.9,3092.7,0.405504]
[1765585442513,0.9534,3092.8,3092.7,0.98597929]
[1765585442712,0.4813,3092.8,3092.7,0.98597929]
[1765585442907,0.4813,3092.8,3092.7,0.405504]
[1765585443108,0.4813,3092.8,3092.6,0.405504]
[1765585443623,0.4813,3092.8,3092.4,0.97088478]
[1765585443624,0.4813,3092.7,3092.4,0.97088478]
[1765585443788,0.4813,3092.6,3092.3,1.09047529]
[1765585444115,0.4813,3092.6,3092.4,0.98597929]
[1765585444417,0.4721,3092.8,3092.6,0.58047529]
[1765585446020,0.6983,3092.9,3092.6,0.58047529]
[1765585446224,1.1704,3092.9,3092.6,0.58047529]
[1765585447827,0.4721,3093.1,3092.7,0.405504]
[1765585448015,0.9821,3093.0,3092.7,0.405504]
[1765585449924,0.6696,3092.8,3092.5,0.405504]
[1765585450125,0.4813,3092.7,3092.5,0.405504]
[1765585450421,0.9534,3092.7,3092.4,0.405504]
[1765585450620,0.9534,3092.7,3092.4,3.6392326]
[1765585452723,0.9534,3092.7,3092.4,0.405504]
[1765585453027,0.4813,3092.5,3092.2,3.814373]
[1765585453232,0.4813,3092.5,3092.3,0.405504]
[1765585453399,0.4813,3092.5,3092.3,0.98597929]
[1765585453918,0.4721,3092.6,3092.3,0.98597929]
[1765585454117,0.4721,3092.6,3092.4,0.58047529]
[1765585454728,0.6604,3092.8,3092.4,0.58047529]
[1765585454929,0.4721,3092.7,3092.4,0.58047529]
[1765585460613,0.4721,3092.7,3092.3,0.98597929]
[1765585462130,0.4721,3092.7,3092.4,0.58047529]
[1765585465339,0.4721,3092.7,3092.5,0.58047529]
[1765585465982,0.1883,3092.8,3092.5,0.58047529]
[1765585466147,0.6871,3092.8,3092.5,0.58047529]
[1765585469629,0.6871,3092.8,3092.5,4.20462473]
[1765585471158,0.51,3093.0,3092.7,0.2551]
[1765585471468,0.51,3093.0,3092.8,0.2551]
[1765585472919,0.461,3092.9,3092.7,0.97095077]
[1765585473118,0.461,3092.8,3092.7,0.97095077]
[1765585473527,0.9598,3092.8,3092.7,0.97095077]
[1765585474236,0.9598,3092.8,3092.3,0.98597929]
[1765585474439,0.4988,3092.7,3092.4,0.97101362]
[1765585477953,3.73222445,3092.7,3092.4,0.97101362]
[1765585478168,0.461,3092.5,3092.4,1.37651762]
[1765585478659,0.9598,3092.5,3092.4,1.37651762]
[1765585479657,0.9598,3092.5,3092.4,0.97101362]
[1765585484783,4.19342974,3092.5,3092.4,0.97101362]
[1765585484935,0.9598,3092.5,3092.4,0.97101362]
[1765585486967,0.51,3092.6,3092.4,1.22611362]
[1765585487284,0.51,3092.6,3092.5,0.2551]
[1765585490768,4.20862518,3092.6,3092.4,0.97101362]
[1765585492399,0.9751,3092.6,3092.4,0.97101362]
[1765585500293,0.51,3092.6,3092.5,0.2551]
[1765585503642,1.84465223,3092.6,3092.0,0.98597929]
[1765585503941,0.4651,3092.1,3091.9,0.97118651]
[1765585504448,0.51,3092.2,3091.9,0.97118651]
[1765585504627,0.9602,3092.2,3091.9,0.97118651]
[1765585505023,0.4651,3092.0,3091.9,0.97118651]
[1765585507518,0.9153,3092.0,3091.9,0.97118651]
[1765585510129,0.4651,3092.0,3091.9,0.97118651]
[1765585513179,7.38366588,3092.0,3091.3,0.405504]
[1765585513326,0.4651,3091.8,3091.1,0.3845]
[1765585513650,0.9751,3091.8,3091.2,0.58047529]
[1765585513845,0.4502,3091.7,3091.5,0.97129656]
[1765585514373,0.4651,3091.6,3091.5,1.37680056]
[1765585515323,0.9153,3091.6,3091.5,1.37680056]
[1765585516960,4.14987109,3091.6,3091.5,1.37680056]
[1765585517858,0.9153,3091.6,3091.5,1.37680056]
[1765585518843,4.14988334,3091.6,3091.2,0.405504]
[1765585519150,0.4536,3091.5,3091.4,1.37681629]
[1765585519547,0.9321,3091.5,3091.4,1.37681629]
[1765585527982,0.4785,3091.5,3091.4,1.37681629]
[1765585528678,3.74441182,3091.8,3091.4,1.63191629]
[1765585528883,4.19521182,3091.8,3091.4,1.63191629]
[1765585529359,4.19521182,3091.8,3091.4,0.660604]
[1765585529683,0.9608,3091.8,3091.4,0.660604]
[1765585530372,4.19518913,3091.8,3091.4,0.660604]
[1765585532375,3.74438913,3091.8,3091.4,0.660604]
[1765585532575,0.4508,3091.7,3091.4,0.660604]
[1765585533385,3.68526796,3091.7,3091.4,0.660604]
[1765585533566,3.68526796,3091.7,3091.4,0.405504]
[1765585533781,0.4508,3091.6,3091.4,0.405504]
[1765585534683,0.4751,3091.5,3091.4,0.405504]
[1765585537218,0.4508,3091.6,3091.4,0.405504]
[1765585537902,3.74446796,3091.7,3091.4,0.405504]
[1765585538214,0.9608,3091.7,3091.4,0.405504]
[1765585539419,4.19527072,3091.7,3091.4,0.405504]
[1765585540807,3.68527072,3091.7,3091.4,0.405504]
[1765585541009,4.19527072,3091.7,3091.4,0.405504]
[1765585541228,0.9608,3091.7,3091.4,0.405504]
[1765585541434,0.51,3091.7,3091.4,0.405504]
[1765585541734,0.51,3091.7,3091.4,0.98597929]
[1765585542637,0.51,3091.7,3091.4,0.405504]
[1765585543430,3.23440134,3091.8,3091.4,0.405504]
[1765585543636,0.51,3091.7,3091.4,0.405504]
[1765585544047,0.9608,3091.7,3091.4,0.405504]
[1765585544946,4.19527271,3091.7,3091.4,0.405504]
[1765585545130,0.51,3091.7,3091.4,0.98597929]
[1765585545510,0.51,3091.7,3091.4,0.405504]
[1765585546740,0.9608,3091.7,3091.4,0.405504]
[1765585548739,0.51,3091.7,3091.6,0.2551]
[1765585550641,0.51,3091.7,3091.4,1.95729158]
[1765585550848,0.51,3091.7,3091.4,1.37681629]
[1765585551219,4.23858007,3091.7,3091.4,1.37681629]
[1765585552348,1.0041,3091.7,3091.4,1.37681629]
[1765585553348,1.0041,3091.7,3091.4,1.95729158]
[1765585556749,0.51,3091.7,3091.4,1.95729158]
[1765585557435,1.0041,3091.7,3091.4,1.95729158]
[1765585570677,1.0041,3091.7,3091.4,4.61159478]
[1765585570887,1.0041,3091.7,3091.5,0.58047529]
[1765585584430,0.51,3091.7,3091.5,0.58047529]
[1765585585036,0.51,3091.7,3091.4,1.95729158]
[1765585586341,1.0088,3091.7,3091.4,1.95729158]
[1765585587646,1.0088,3091.7,3091.5,0.58047529]
[1765585589657,1.0088,3091.7,3091.6,0.97131229]
[1765585590129,1.4814,3091.7,3091.6,0.97131229]
[1765585592640,4.71586647,3091.7,3091.6,0.97131229]
[1765585593736,1.4814,3091.7,3091.6,0.97131229]
[1765585594140,4.71586647,3091.7,3091.6,0.97131229]
[1765585595241,5.20200312,3091.7,3091.6,0.97131229]
[1765585595551,5.20200312,3091.7,3090.7,0.97131229]
[1765585595552,25.25597725,3091.7,3090.7,0.97131229]
[1765585595758,0.4988,3091.6,3090.7,0.97131229]
[1765585596823,0.4988,3091.6,3090.7,1.55178758]
[1765585597021,2.15489108,3091.5,3090.7,1.55178758]
[1765585597232,2.15489108,3091.5,3090.7,0.58047529]
[1765585597464,6.4695607,3091.4,3090.8,0.9715954]
[1765585597665,0.51,3091.3,3090.8,0.9715954]
[1765585597959,1.0088,3091.3,3090.8,0.9715954]
[1765585598149,1.24663607,3091.2,3090.8,0.9715954]
[1765585598537,3.98289677,3091.2,3090.8,0.9715954]
[1765585598737,0.4988,3091.1,3090.8,0.9715954]
[1765585598941,5.3895856,3091.5,3090.8,0.9715954]
[1765585599242,0.4988,3091.2,3090.8,1.55207069]
[1765585599557,0.4988,3091.2,3090.7,0.405504]
[1765585599858,0.4988,3091.2,3090.9,0.97155135]
[1765585600321,0.4726,3091.0,3090.9,0.97155135]
[1765585600522,0.9826,3091.0,3090.9,0.97155135]
[1765585602729,0.4726,3091.0,3090.9,0.97155135]
[1765585602929,0.9826,3091.0,3090.9,0.97155135]
[1765585606161,1.4814,3091.0,3090.9,0.97155135]
[1765585606365,4.71659896,3091.0,3090.9,0.97155135]
[1765585608252,1.4814,3091.0,3090.9,0.97155135]
[1765585612160,0.9826,3091.0,3090.9,0.97155135]
[1765585612866,0.51,3091.0,3090.9,1.22665135]
[1765585613737,0.51,3091.0,3090.9,0.97155135]
[1765585614262,1.4454,3091.0,3090.9,0.97155135]
[1765585614470,4.68059896,3091.0,3090.9,0.97155135]
[1765585615269,1.4454,3091.0,3090.9,0.97155135]
[1765585617694,4.68059896,3091.0,3090.9,0.97155135]
[1765585621608,4.68059896,3091.0,3090.6,0.002]
[1765585621609,18.26255623,3091.0,3090.6,0.002]
[1765585621810,3.87361299,3090.7,3090.6,0.002]
[1765585622294,4.33701299,3090.7,3090.6,0.002]
[1765585622674,4.46659681,3090.7,3090.6,0.002]
[1765585627491,10.78659681,3090.7,3090.6,0.002]
[1765585627692,12.59205499,3090.7,3090.6,0.002]
[1765585630829,13.10205499,3090.7,3090.6,0.002]
[1765585650470,12.97247117,3090.7,3090.6,0.002]
[1765585655282,12.46247117,3090.7,3090.6,0.002]
[1765585655446,12.97247117,3090.7,3090.6,0.002]
[1765585676974,20.41254934,3090.7,3090.6,0.002]
[1765585677209,21.122637,3090.7,3090.6,0.002]
[1765585680380,21.21708416,3090.7,3090.6,0.002]
[1765585680776,21.21708416,3090.7,3090.2,0.002]
[1765585680777,3.406,3090.0,3089.5,0.002]
[1765585681104,30.58047529,3090.6,3089.0,0.002]
[1765585681105,4.03407817,3090.4,3089.4,0.2551]
[1765585681312,0.51,3090.3,3089.9,0.2551]
[1765585681483,0.12961909,3090.2,3089.9,0.2551]
[1765585681689,0.51,3090.1,3089.9,0.2551]
[1765585682090,0.2551,3090.4,3090.0,0.2551]
[1765585682277,0.51,3090.3,3090.0,0.2551]
[1765585682478,3.2360365,3090.2,3090.0,0.2551]
[1765585683102,3.7028365,3090.2,3090.0,0.2551]
[1765585683303,10.1749095,3090.2,3089.7,0.2551]
[1765585683910,0.4668,3090.1,3089.5,0.2551]
[1765585684406,6.4724919,3090.0,3089.5,0.2551]
[1765585684702,0.51,3089.9,3089.5,0.2551]
[1765585686082,6.47291086,3089.8,3089.5,0.2551]
[1765585687008,3.23645543,3089.8,3089.7,0.2551]
[1765585687418,3.23645543,3089.8,3089.7,0.5102]
[1765585690514,3.23645543,3089.8,3089.7,0.2551]
[1765585690928,6.96601086,3089.8,3089.0,0.002]
[1765585691311,0.4668,3089.7,3089.2,0.2551]
[1765585691820,6.47291086,3089.8,3089.3,0.2571]
[1765585692125,6.93971086,3089.8,3089.3,0.2571]
[1765585692300,6.47291086,3089.8,3089.3,0.2571]
[1765585692519,7.49483669,3089.8,3089.3,0.2571]
[1765585695721,6.32,3089.7,3089.3,0.2571]
[1765585696206,6.32,3089.7,3089.6,0.2551]
[1765585696817,9.55656018,3089.7,3089.6,0.2551]
[1765585697895,9.55656018,3089.7,3089.6,0.5102]
[1765585698125,10.06656018,3089.7,3089.6,0.5102]
[1765585699331,6.32,3089.7,3089.6,0.5102]
[1765585699624,6.83,3089.7,3089.6,0.5102]
[1765585699824,6.32,3089.7,3089.6,0.5102]
[1765585700129,6.83,3089.7,3089.6,0.5102]
[1765585700423,6.32,3089.7,3089.6,0.5102]